[Event "WSCC 50 Open 2017"]
[Site "?"]
[Date "2017.11.12"]
[Round "6"]
[White "Biro, Sandor"]
[Black "Certek, Pavel"]
[Result "1/2-1/2"]
[ECO "B21"]
[WhiteElo "2168"]
[BlackElo "2295"]
[PlyCount "69"]
[EventDate "2017.??.??"]
[EventType "swiss"]
[EventCountry "ITA"]
[SourceTitle "Acqui Terme"]
[TimeControl "40/5400+30:1800+30"]
[WhiteClock "0:04:16"]
[BlackClock "0:02:59"]

1. e4 {[%emt 0:00:00]} c5 {[%emt 0:00:55]} 2. d4 {[%emt 0:00:00]} cxd4 {[%emt 0:00:15]} 3. c3 {[%emt 0:00:00]} d5 {[%emt 0:00:24]} 4. exd5 {[%emt 0:00:00]} Qxd5 {[%emt 0:00:02]} 5. cxd4 {[%emt 0:00:09]} Nc6 {[%emt 0:00:08]} 6. Nf3 {[%emt 0:00:05]} e5 {[%emt 0:00:03]} 7. Nc3 {[%emt 0:00:08]} Bb4 {[%emt 0:00:02]} 8. Be2 {[%emt 0:00:08]} e4 {[%emt 0:02:16]} 9. O-O {[%emt 0:00:07]} Bxc3 {[%emt 0:09:57]} 10. bxc3 {[%emt 0:00:06]} exf3 {[%emt 0:02:53]} 11. Bxf3 {[%emt 0:00:21]} Qa5 {[%emt 0:00:43]} 12. Re1+ {[%emt 0:00:15]} Nge7 {[%emt 0:01:13]} 13. d5 {[%emt 0:02:08]} O-O {[%emt 0:03:35]} 14. c4 {[%emt 0:07:39]} Qc3 {[%emt 0:17:35]} 15. Bd2 {[%emt 0:37:13]} Qxc4 {[%emt 0:01:32]} 16. Rc1 {[%emt 0:01:10]} Qxa2 {[%emt 0:09:15]} 17. dxc6 {[%emt 0:07:28]} Nxc6 {[%emt 0:00:58]} 18. Bc3 {[%emt 0:02:39]} Be6 {[%emt 0:03:00]} 19. Re2 {[%emt 0:03:21]} Rfd8 {[%emt 0:11:48]} 20. Qe1 {[%emt 0:01:15]} Qb3 {[%emt 0:03:01]} 21. Rb2 {[%emt 0:07:31]} Qa3 {[%emt 0:06:43]} 22. Rxb7 {[%emt 0:11:23]} Nd4 {[%emt 0:03:36]} 23. Bxd4 {[%emt 0:09:03]} Rxd4 {[%emt 0:00:10]} 24. Rxf7 {[%emt 0:06:22]} Re8 {[%emt 0:13:52]} 25. Rxg7+ {[%emt 0:01:12]} Kxg7 {[%emt 0:00:48]} 26. Qe5+ {[%emt 0:00:05]} Kg8 {[%emt 0:05:39]} 27. Qg5+ {[%emt 0:00:17]} Kf8 {[%emt 0:00:22]} 28. Qh6+ {[%emt 0:01:41]} Kg8 {[%emt 0:02:00]} 29. Qg5+ {[%emt 0:00:06]} Kf8 {[%emt 0:00:38]} 30. Qh6+ {[%emt 0:00:14]} Kg8 {[%emt 0:00:05]} 31. Qg5+ {[%emt 0:00:08]} Kh8 {[%emt 0:00:12]} 32. Qf6+ {[%emt 0:00:18]} Kg8 {[%emt 0:00:04]} 33. Qg5+ {[%emt 0:00:13]} Kf8 {[%emt 0:00:12]} 34. Qh6+ {[%emt 0:00:14]} Kg8 {[%emt 0:00:35]} 35. Qg5+ {[%emt 0:00:15]} 1/2-1/2

[Event "WSCC 50 Open 2017"]
[Site "?"]
[Date "2017.11.14"]
[Round "7"]
[White "Jhunjhnuwala, Krishan"]
[Black "Mantovani, Renzo"]
[Result "1-0"]
[ECO "C77"]
[WhiteElo "2340"]
[BlackElo "2307"]
[PlyCount "69"]
[EventDate "2017.??.??"]
[EventType "swiss"]
[EventCountry "ITA"]
[SourceTitle "Acqui Terme"]
[TimeControl "40/5400+30:1800+30"]
[WhiteClock "0:12:14"]
[BlackClock "0:01:06"]

1. e4 {[%emt 0:00:00]} e5 {[%emt 0:00:16]} 2. Nf3 {[%emt 0:00:37]} Nc6 {[%emt 0:00:19]} 3. Bb5 {[%emt 0:00:25]} Nf6 {[%emt 0:00:50]} 4. Qe2 {[%emt 0:01:46]} a6 {[%emt 0:05:34]} 5. Ba4 {[%emt 0:03:37]} b5 {[%emt 0:05:51]} 6. Bb3 {[%emt 0:00:14]} Bc5 {[%emt 0:00:10]} 7. a4 {[%emt 0:02:39]} Rb8 {[%emt 0:03:11]} 8. axb5 {[%emt 0:01:47]} axb5 {[%emt 0:00:04]} 9. O-O {[%emt 0:00:56]} O-O {[%emt 0:05:42]} 10. d3 {[%emt 0:05:14]} d6 {[%emt 0:04:48]} 11. h3 {[%emt 0:09:09]} Be6 {[%emt 0:01:06]} 12. Bxe6 {[%emt 0:09:22]} fxe6 {[%emt 0:00:09]} 13. Be3 {[%emt 0:00:33]} Bb6 {[%emt 0:24:47]} 14. Nbd2 {[%emt 0:01:40]} Qe8 {[%emt 0:05:15]} 15. Bxb6 {[%emt 0:12:41]} Rxb6 {[%emt 0:01:16]} 16. c3 {[%emt 0:00:54]} Qg6 {[%emt 0:11:20]} 17. Kh2 {[%emt 0:02:22]} Rbb8 {[%emt 0:00:41]} 18. d4 {[%emt 0:01:49]} Nh5 {[%emt 0:06:35]} 19. g3 {[%emt 0:01:54]} b4 {[%emt 0:11:47]} 20. Ra6 {[%emt 0:04:49]} bxc3 {[%emt 0:00:26]} 21. bxc3 {[%emt 0:00:29]} Qe8 {[%emt 0:04:21]} 22. Qc4 {[%emt 0:08:58]} Rb6 {[%emt 0:00:11]} 23. Rxb6 {[%emt 0:02:01]} cxb6 {[%emt 0:00:02]} 24. Rb1 {[%emt 0:01:38]} exd4 {[%emt 0:02:00]} 25. cxd4 {[%emt 0:00:54]} Nd8 {[%emt 0:01:04]} 26. Rxb6 {[%emt 0:01:33]} Nf7 {[%emt 0:01:21]} 27. Kg2 {[%emt 0:03:34]} Nf6 {[%emt 0:00:50]} 28. Ra6 {[%emt 0:04:20]} Qc8 {[%emt 0:01:53]} 29. Qxc8 {[%emt 0:02:40]} Rxc8 {[%emt 0:00:01]} 30. e5 {[%emt 0:00:35]} Ne8 {[%emt 0:00:50]} 31. Ne4 {[%emt 0:01:00]} Rd8 {[%emt 0:00:24]} 32. Neg5 {[%emt 0:02:25]} Nxg5 {[%emt 0:01:17]} 33. Nxg5 {[%emt 0:00:06]} dxe5 {[%emt 0:00:11]} 34. dxe5 {[%emt 0:00:59]} Rd2 {[%emt 0:01:52]} 35. Rxe6 {[%emt 0:01:36]} 1-0

[Event "WSCC 50 Open 2017"]
[Site "?"]
[Date "2017.11.14"]
[Round "7"]
[White "Petran, Peter"]
[Black "Cetinkaya, Vedat Ali"]
[Result "0-1"]
[ECO "A06"]
[WhiteElo "2330"]
[BlackElo "1968"]
[PlyCount "128"]
[EventDate "2017.??.??"]
[EventType "swiss"]
[EventCountry "ITA"]
[SourceTitle "Acqui Terme"]
[TimeControl "40/5400+30:1800+30"]
[WhiteClock "0:12:22"]
[BlackClock "0:23:13"]

1. Nf3 {[%emt 0:00:00]} d5 {[%emt 0:00:14]} 2. g3 {[%emt 0:00:00]} Nf6 {[%emt 0:00:14]} 3. Bg2 {[%emt 0:00:00]} g6 {[%emt 0:03:32]} 4. d3 {[%emt 0:00:08]} Bg7 {[%emt 0:00:09]} 5. Nbd2 {[%emt 0:00:09]} O-O {[%emt 0:01:24]} 6. O-O {[%emt 0:00:15]} c5 {[%emt 0:03:25]} 7. e4 {[%emt 0:00:08]} e6 {[%emt 0:01:17]} 8. c3 {[%emt 0:00:45]} dxe4 {[%emt 0:03:59]} 9. dxe4 {[%emt 0:00:07]} Nc6 {[%emt 0:01:48]} 10. Re1 {[%emt 0:00:06]} b6 {[%emt 0:11:45]} 11. Qc2 {[%emt 0:05:18]} Ba6 {[%emt 0:04:40]} 12. Qa4 {[%emt 0:02:07]} Qc8 {[%emt 0:04:36]} 13. Nf1 {[%emt 0:15:33]} Bd3 {[%emt 0:08:18]} 14. e5 {[%emt 0:02:51]} Nd7 {[%emt 0:08:15]} 15. Bf4 {[%emt 0:01:46]} Rd8 {[%emt 0:03:48]} 16. Bg5 {[%emt 0:04:43]} Re8 {[%emt 0:01:30]} 17. Qh4 {[%emt 0:07:38]} Bxf1 {[%emt 0:09:12]} 18. Kxf1 {[%emt 0:00:48]} Ndxe5 {[%emt 0:01:08]} 19. Nd2 {[%emt 0:05:00]} f5 {[%emt 0:07:47]} 20. Rad1 {[%emt 0:03:44]} Nd3 {[%emt 0:04:42]} 21. Re3 {[%emt 0:00:37]} Nxb2 {[%emt 0:00:58]} 22. Rb1 {[%emt 0:00:34]} Ne5 {[%emt 0:07:29]} 23. Rxb2 {[%emt 0:02:45]} Ng4 {[%emt 0:00:33]} 24. Re2 {[%emt 0:07:42]} h6 {[%emt 0:02:14]} 25. Bxh6 {[%emt 0:22:23]} Nxh6 {[%emt 0:01:47]} 26. Qg5 {[%emt 0:05:11]} Kh7 {[%emt 0:00:50]} 27. Bxa8 {[%emt 0:03:59]} Qxa8 {[%emt 0:00:08]} 28. Kg1 {[%emt 0:00:04]} Bxc3 {[%emt 0:01:25]} 29. Rc2 {[%emt 0:00:12]} Bg7 {[%emt 0:01:13]} 30. h3 {[%emt 0:02:00]} e5 {[%emt 0:03:40]} 31. Nf1 {[%emt 0:01:02]} e4 {[%emt 0:00:56]} 32. Red2 {[%emt 0:01:24]} Qc6 {[%emt 0:01:06]} 33. Qe3 {[%emt 0:02:24]} Qe6 {[%emt 0:00:44]} 34. a4 {[%emt 0:01:46]} Nf7 {[%emt 0:00:24]} 35. Qe2 {[%emt 0:00:49]} Ne5 {[%emt 0:00:16]} 36. Rd1 {[%emt 0:00:33]} Nf3+ {[%emt 0:00:28]} 37. Kg2 {[%emt 0:00:06]} Nd4 {[%emt 0:00:16]} 38. Qc4 {[%emt 0:02:05]} Nxc2 {[%emt 0:00:22]} 39. Qxc2 {[%emt 0:00:01]} Bd4 {[%emt 0:00:24]} 40. Ne3 {[%emt 0:00:36]} Kg7 {[%emt 0:30:48]} 41. Re1 {[%emt 0:30:34]} Rh8 {[%emt 0:01:25]} 42. Nc4 {[%emt 0:00:00]} a6 {[%emt 0:00:00]} 43. h4 {[%emt 0:00:00]} b5 {[%emt 0:00:00]} 44. axb5 {[%emt 0:00:00]} axb5 {[%emt 0:00:00]} 45. Nd2 {[%emt 0:00:00]} Qd5 {[%emt 0:00:00]} 46. Nb3 {[%emt 0:00:00]} Rd8 {[%emt 0:00:00]} 47. Rd1 {[%emt 0:00:00]} Qc4 {[%emt 0:00:00]} 48. Qxc4 {[%emt 0:00:00]} bxc4 {[%emt 0:00:00]} 49. Nxc5 {[%emt 0:00:00]} Kf6 {[%emt 0:00:00]} 50. Nb7 {[%emt 0:00:00]} Rd5 {[%emt 0:00:00]} 51. Na5 {[%emt 0:00:00]} Rxa5 {[%emt 0:00:00]} 52. Rxd4 {[%emt 0:00:00]} Rc5 {[%emt 0:00:00]} 53. Kf1 {[%emt 0:00:00]} Ke5 {[%emt 0:00:00]} 54. Rd1 {[%emt 0:00:00]} Rd5 {[%emt 0:00:00]} 55. Rc1 {[%emt 0:00:00]} Kd4 {[%emt 0:00:00]} 56. Ke2 {[%emt 0:00:00]} c3 {[%emt 0:00:00]} 57. Ra1 {[%emt 0:00:00]} Kc5 {[%emt 0:00:00]} 58. Ke3 {[%emt 0:00:00]} Kb4 {[%emt 0:00:00]} 59. Kf4 {[%emt 0:00:00]} Rd2 {[%emt 0:00:00]} 60. Kg5 {[%emt 0:00:00]} Rxf2 {[%emt 0:00:00]} 61. Kxg6 {[%emt 0:00:00]} e3 {[%emt 0:00:00]} 62. h5 {[%emt 0:00:00]} e2 {[%emt 0:00:00]} 63. Re1 {[%emt 0:00:56]} Kc4 {[%emt 0:00:00]} 64. h6 {[%emt 0:00:49]} Kd3 {[%emt 0:00:00]} 0-1

[Event "WSCC 50 Open 2017"]
[Site "?"]
[Date "2017.11.14"]
[Round "7"]
[White "Welling, Gerard"]
[Black "Biro, Sandor"]
[Result "0-1"]
[ECO "A04"]
[WhiteElo "2316"]
[BlackElo "2168"]
[PlyCount "60"]
[EventDate "2017.??.??"]
[EventType "swiss"]
[EventCountry "ITA"]
[SourceTitle "Acqui Terme"]
[TimeControl "40/5400+30:1800+30"]
[WhiteClock "0:02:21"]
[BlackClock "0:02:03"]

1. Nf3 {[%emt 0:00:00]} Nc6 {[%emt 0:03:38]} 2. b3 {[%emt 0:02:55]} e5 {[%emt 0:00:35]} 3. Bb2 {[%emt 0:00:15]} e4 {[%emt 0:02:43]} 4. Nd4 {[%emt 0:01:13]} Nf6 {[%emt 0:03:23]} 5. e3 {[%emt 0:00:37]} d5 {[%emt 0:01:35]} 6. Nxc6 {[%emt 0:01:36]} bxc6 {[%emt 0:00:07]} 7. c4 {[%emt 0:00:05]} Bd6 {[%emt 0:08:43]} 8. cxd5 {[%emt 0:03:46]} cxd5 {[%emt 0:04:45]} 9. Bb5+ {[%emt 0:02:17]} Kf8 {[%emt 0:05:34]} 10. Qc2 {[%emt 0:18:18]} c5 {[%emt 0:06:09]} 11. Nc3 {[%emt 0:28:40]} Bb7 {[%emt 0:03:54]} 12. Ne2 {[%emt 0:14:41]} a6 {[%emt 0:15:34]} 13. Ba4 {[%emt 0:00:10]} Rc8 {[%emt 0:01:14]} 14. Ng3 {[%emt 0:02:41]} Kg8 {[%emt 0:14:38]} 15. Qc3 {[%emt 0:03:19]} d4 {[%emt 0:00:47]} 16. Qc4 {[%emt 0:03:18]} Be5 {[%emt 0:10:51]} 17. O-O {[%emt 0:05:32]} h5 {[%emt 0:00:35]} 18. exd4 {[%emt 0:03:47]} cxd4 {[%emt 0:02:34]} 19. Qb4 {[%emt 0:00:06]} Rc7 {[%emt 0:01:37]} 20. Nf5 {[%emt 0:00:42]} Nd5 {[%emt 0:01:02]} 21. Qa5 {[%emt 0:00:23]} Qf6 {[%emt 0:03:05]} 22. Ng3 {[%emt 0:00:42]} Nf4 {[%emt 0:01:38]} 23. Bxd4 {[%emt 0:00:35]} Bxd4 {[%emt 0:00:47]} 24. Qxc7 {[%emt 0:00:02]} h4 {[%emt 0:00:30]} 25. Qxb7 {[%emt 0:00:45]} hxg3 {[%emt 0:01:28]} 26. Qa8+ {[%emt 0:00:34]} Kh7 {[%emt 0:00:10]} 27. Qxe4+ {[%emt 0:00:03]} g6 {[%emt 0:00:37]} 28. hxg3 {[%emt 0:00:28]} Nh5 {[%emt 0:02:59]} 29. Rac1 {[%emt 0:05:08]} Nxg3 {[%emt 0:00:37]} 30. Qf3 {[%emt 0:00:01]} Qh4 {[%emt 0:01:38]} 0-1

[Event "WSCC 50 Open 2017"]
[Site "?"]
[Date "2017.11.14"]
[Round "7"]
[White "Certek, Pavel"]
[Black "Luciani, Carlo"]
[Result "1/2-1/2"]
[ECO "A49"]
[WhiteElo "2295"]
[BlackElo "2232"]
[PlyCount "95"]
[EventDate "2017.??.??"]
[EventType "swiss"]
[EventCountry "ITA"]
[SourceTitle "Acqui Terme"]
[TimeControl "40/5400+30:1800+30"]
[WhiteClock "0:44:10"]
[BlackClock "0:21:51"]

1. Nf3 {[%emt 0:00:00]} Nf6 {[%emt 0:00:10]} 2. d4 {[%emt 0:00:00]} g6 {[%emt 0:00:20]} 3. g3 {[%emt 0:00:00]} Bg7 {[%emt 0:00:18]} 4. Bg2 {[%emt 0:00:00]} O-O {[%emt 0:00:20]} 5. b3 {[%emt 0:00:26]} d6 {[%emt 0:01:58]} 6. Bb2 {[%emt 0:01:25]} e5 {[%emt 0:00:45]} 7. dxe5 {[%emt 0:01:10]} Nfd7 {[%emt 0:00:57]} 8. O-O {[%emt 0:00:20]} dxe5 {[%emt 0:01:12]} 9. e4 {[%emt 0:04:47]} Na6 {[%emt 0:09:10]} 10. Nbd2 {[%emt 0:03:29]} Nac5 {[%emt 0:05:43]} 11. Re1 {[%emt 0:02:44]} Qe7 {[%emt 0:02:59]} 12. a4 {[%emt 0:01:51]} a5 {[%emt 0:00:15]} 13. Nc4 {[%emt 0:00:30]} Rd8 {[%emt 0:01:08]} 14. Qe2 {[%emt 0:06:35]} b6 {[%emt 0:09:32]} 15. Ba3 {[%emt 0:06:15]} Ba6 {[%emt 0:02:21]} 16. Bf1 {[%emt 0:08:48]} Bh6 {[%emt 0:04:18]} 17. Red1 {[%emt 0:05:00]} f6 {[%emt 0:09:55]} 18. Ne1 {[%emt 0:02:20]} Bf8 {[%emt 0:04:40]} 19. Qg4 {[%emt 0:01:46]} Qf7 {[%emt 0:05:46]} 20. Ne3 {[%emt 0:03:56]} Bxf1 {[%emt 0:00:58]} 21. Kxf1 {[%emt 0:00:28]} h5 {[%emt 0:04:12]} 22. Qf3 {[%emt 0:02:23]} Ne6 {[%emt 0:00:19]} 23. Bb2 {[%emt 0:05:24]} Bc5 {[%emt 0:04:15]} 24. Qe2 {[%emt 0:04:05]} Ng5 {[%emt 0:03:02]} 25. Nd5 {[%emt 0:02:14]} c6 {[%emt 0:02:13]} 26. Nc3 {[%emt 0:02:27]} Bd4 {[%emt 0:06:33]} 27. Nf3 {[%emt 0:01:26]} Nc5 {[%emt 0:03:56]} 28. Nxd4 {[%emt 0:03:50]} exd4 {[%emt 0:00:17]} 29. Na2 {[%emt 0:00:24]} d3 {[%emt 0:00:17]} 30. cxd3 {[%emt 0:00:44]} Nxb3 {[%emt 0:00:53]} 31. Rab1 {[%emt 0:00:46]} Nc5 {[%emt 0:02:06]} 32. Nc3 {[%emt 0:01:48]} Nge6 {[%emt 0:00:43]} 33. Qe3 {[%emt 0:01:34]} Qd7 {[%emt 0:07:24]} 34. Ne2 {[%emt 0:03:24]} Kg7 {[%emt 0:03:21]} 35. Ba1 {[%emt 0:01:09]} Nxa4 {[%emt 0:01:24]} 36. d4 {[%emt 0:00:06]} Ng5 {[%emt 0:01:48]} 37. d5 {[%emt 0:00:33]} Qh3+ {[%emt 0:01:05]} 38. Kg1 {[%emt 0:00:09]} Qg4 {[%emt 0:00:09]} 39. Nf4 {[%emt 0:01:36]} Kf7 {[%emt 0:01:01]} 40. Kg2 {[%emt 0:01:11]} Re8 {[%emt 0:30:38]} 41. f3 {[%emt 0:31:54]} Qd7 {[%emt 0:01:39]} 42. Qd4 {[%emt 0:01:27]} Re5 {[%emt 0:00:00]} 43. Qxa4 {[%emt 0:00:00]} Nxf3 {[%emt 0:00:00]} 44. dxc6 {[%emt 0:00:00]} Nh4+ {[%emt 0:00:00]} 45. Kf2 {[%emt 0:00:00]} Qg4 {[%emt 0:00:00]} 46. Qb3+ {[%emt 0:00:00]} Kg7 {[%emt 0:00:00]} 47. Bxe5 {[%emt 0:00:00]} fxe5 {[%emt 0:00:00]} 48. h3 {[%emt 0:00:00]} 1/2-1/2

[Event "WSCC 50 Open 2017"]
[Site "?"]
[Date "2017.11.14"]
[Round "7"]
[White "Prasad, Devaki V"]
[Black "Brongers, Henk"]
[Result "1-0"]
[ECO "B12"]
[WhiteElo "2290"]
[BlackElo "2022"]
[PlyCount "101"]
[EventDate "2017.??.??"]
[EventType "swiss"]
[EventCountry "ITA"]
[SourceTitle "Acqui Terme"]
[TimeControl "40/5400+30:1800+30"]

1. e4 c6 2. d4 d5 3. e5 Bf5 4. Nf3 e6 5. Be2 h6 6. O-O Ne7 7. Nbd2 Nd7 8. Nb3 g5 9. Ne1 Bg6 10. c3 Bg7 11. Nd3 Qc7 12. f4 Bxd3 13. Bxd3 c5 14. Bb5 Nc6 15. Qh5 c4 16. Bxc6 bxc6 17. fxg5 O-O-O 18. Qxf7 Bxe5 19. dxe5 cxb3 20. Qxe6 hxg5 21. axb3 Rde8 22. Qd6 Qb6+ 23. Kh1 Rxe5 24. Bd2 Rhe8 25. Rf7 Nb8 26. Raf1 c5 27. Qxb6 axb6 28. h3 Nd7 29. Rg7 Re2 30. Bxg5 Rxb2 31. Rff7 Ne5 32. Rc7+ Kb8 33. Bf4 d4 34. cxd4 cxd4 35. Rb7+ Ka8 36. Ra7+ Kb8 37. Rae7 Rxe7 38. Rxe7 Rb1+ 39. Kh2 d3 40. Bxe5+ Kc8 41. Rc7+ Kd8 42. Rc3 Rd1 43. Bf4 Ke7 44. h4 Ke6 45. Rc6+ Kf5 46. Bg5 Ke5 47. Rc8 Rb1 48. Rd8 Rxb3 49. h5 Kf5 50. h6 Kg6 51. Rd6+ 1-0

[Event "WSCC 50 Open 2017"]
[Site "?"]
[Date "2017.11.14"]
[Round "7"]
[White "Belmont Hernandez, Andres"]
[Black "Bagaturov, Giorgi"]
[Result "0-1"]
[ECO "B40"]
[WhiteElo "2076"]
[BlackElo "2399"]
[PlyCount "96"]
[EventDate "2017.??.??"]
[EventType "swiss"]
[EventCountry "ITA"]
[SourceTitle "Acqui Terme"]
[TimeControl "40/5400+30:1800+30"]
[WhiteClock "0:08:23"]
[BlackClock "0:16:19"]

1. e4 {[%emt 0:00:00]} c5 {[%emt 0:00:10]} 2. Nf3 {[%emt 0:00:00]} e6 {[%emt 0:03:14]} 3. Nc3 {[%emt 0:00:38]} Nc6 {[%emt 0:02:13]} 4. g3 {[%emt 0:04:32]} Nf6 {[%emt 0:01:32]} 5. Bg2 {[%emt 0:00:11]} d6 {[%emt 0:01:31]} 6. O-O {[%emt 0:00:47]} Be7 {[%emt 0:01:32]} 7. d4 {[%emt 0:02:54]} cxd4 {[%emt 0:00:23]} 8. Nxd4 {[%emt 0:00:08]} Bd7 {[%emt 0:00:51]} 9. Ndb5 {[%emt 0:03:29]} Qb8 {[%emt 0:00:50]} 10. Bf4 {[%emt 0:05:13]} Ne5 {[%emt 0:02:16]} 11. a4 {[%emt 0:06:34]} O-O {[%emt 0:02:38]} 12. Bg5 {[%emt 0:04:43]} a6 {[%emt 0:08:49]} 13. Na3 {[%emt 0:04:59]} b5 {[%emt 0:05:55]} 14. f4 {[%emt 0:06:45]} Neg4 {[%emt 0:01:37]} 15. Bxf6 {[%emt 0:06:08]} Nxf6 {[%emt 0:01:54]} 16. e5 {[%emt 0:03:43]} dxe5 {[%emt 0:09:31]} 17. fxe5 {[%emt 0:01:15]} Qxe5 {[%emt 0:04:13]} 18. axb5 {[%emt 0:07:53]} axb5 {[%emt 0:07:42]} 19. Rxf6 {[%emt 0:05:12]} Bxf6 {[%emt 0:07:12]} 20. Bxa8 {[%emt 0:04:51]} Rxa8 {[%emt 0:13:23]} 21. Qxd7 {[%emt 0:02:40]} b4 {[%emt 0:04:09]} 22. Qc6 {[%emt 0:02:21]} Qb8 {[%emt 0:04:42]} 23. Nd1 {[%emt 0:11:10]} h6 {[%emt 0:05:14]} 24. c3 {[%emt 0:01:53]} bxa3 {[%emt 0:00:47]} 25. Rxa3 {[%emt 0:00:14]} Rxa3 {[%emt 0:00:14]} 26. bxa3 {[%emt 0:00:02]} Qa7+ {[%emt 0:02:28]} 27. Kf1 {[%emt 0:00:21]} Qxa3 {[%emt 0:00:13]} 28. Qe8+ {[%emt 0:01:52]} Qf8 {[%emt 0:00:34]} 29. Qxf8+ {[%emt 0:00:18]} Kxf8 {[%emt 0:00:04]} 30. g4 {[%emt 0:00:08]} Ke7 {[%emt 0:00:10]} 31. Ke2 {[%emt 0:00:11]} Kd6 {[%emt 0:00:36]} 32. Ke3 {[%emt 0:02:10]} Kd5 {[%emt 0:01:10]} 33. Kd3 {[%emt 0:00:14]} Ke5 {[%emt 0:00:21]} 34. c4 {[%emt 0:05:29]} Be7 {[%emt 0:01:31]} 35. Nf2 {[%emt 0:03:10]} f5 {[%emt 0:02:13]} 36. gxf5 {[%emt 0:00:45]} exf5 {[%emt 0:00:06]} 37. Nd1 {[%emt 0:00:51]} g5 {[%emt 0:01:32]} 38. Ne3 {[%emt 0:01:34]} Bc5 {[%emt 0:00:46]} 39. Nf1 {[%emt 0:00:59]} g4 {[%emt 0:02:47]} 40. Ng3 {[%emt 0:02:52]} Bf2 {[%emt 0:31:49]} 41. Nf1 {[%emt 0:03:25]} h5 {[%emt 0:00:00]} 42. Ke2 {[%emt 0:06:54]} Bg1 {[%emt 0:00:00]} 43. h3 {[%emt 0:02:42]} f4 {[%emt 0:00:00]} 44. Nd2 {[%emt 0:01:45]} Bc5 {[%emt 0:00:00]} 45. hxg4 {[%emt 0:01:15]} hxg4 {[%emt 0:00:00]} 46. Kd3 {[%emt 0:02:28]} f3 {[%emt 0:00:00]} 47. Ne4 {[%emt 0:06:19]} f2 {[%emt 0:00:00]} 48. Nd2 {[%emt 0:01:40]} g3 {[%emt 0:00:00] Kd4+} 0-1

[Event "WSCC 50 Open 2017"]
[Site "?"]
[Date "2017.11.14"]
[Round "7"]
[White "Vepkhvishvili, Varlam"]
[Black "Buchal, Stephan"]
[Result "1-0"]
[ECO "B06"]
[WhiteElo "2048"]
[BlackElo "2347"]
[PlyCount "115"]
[EventDate "2017.??.??"]
[EventType "swiss"]
[EventCountry "ITA"]
[SourceTitle "Acqui Terme"]
[TimeControl "40/5400+30:1800+30"]
[WhiteClock "1:02:53"]
[BlackClock "0:00:55"]

1. e4 {[%emt 0:00:00]} g6 {[%emt 0:00:11]} 2. d4 {[%emt 0:00:00]} Bg7 {[%emt 0:00:06]} 3. Nc3 {[%emt 0:00:00]} d6 {[%emt 0:00:09]} 4. Be2 {[%emt 0:00:57]} a6 {[%emt 0:01:12]} 5. a4 {[%emt 0:00:45]} b6 {[%emt 0:02:24]} 6. f4 {[%emt 0:00:27]} Nd7 {[%emt 0:05:40]} 7. g4 {[%emt 0:01:21]} e5 {[%emt 0:02:16]} 8. dxe5 {[%emt 0:01:18]} dxe5 {[%emt 0:09:23]} 9. f5 {[%emt 0:02:53]} Qh4+ {[%emt 0:05:47]} 10. Kf1 {[%emt 0:01:14]} Bb7 {[%emt 0:04:37]} 11. Be3 {[%emt 0:00:48]} gxf5 {[%emt 0:05:19]} 12. Bf2 {[%emt 0:01:27]} Qh6 {[%emt 0:06:58]} 13. gxf5 {[%emt 0:00:28]} Ne7 {[%emt 0:03:49]} 14. Bf3 {[%emt 0:00:48]} Rd8 {[%emt 0:10:42]} 15. Qe2 {[%emt 0:02:45]} Qd6 {[%emt 0:04:27]} 16. Nh3 {[%emt 0:02:46]} Qb4 {[%emt 0:01:46]} 17. Nd1 {[%emt 0:02:55]} Nf6 {[%emt 0:09:48]} 18. c3 {[%emt 0:00:58]} Qd6 {[%emt 0:00:43]} 19. Rg1 {[%emt 0:01:20]} Bh6 {[%emt 0:02:43]} 20. Bh4 {[%emt 0:00:23]} Qc6 {[%emt 0:02:57]} 21. Ndf2 {[%emt 0:01:59]} Rd2 {[%emt 0:01:17]} 22. Qe1 {[%emt 0:00:43]} Nxf5 {[%emt 0:09:41]} 23. exf5 {[%emt 0:00:54]} Qc4+ {[%emt 0:00:23]} 24. Be2 {[%emt 0:01:34]} Qxh4 {[%emt 0:00:25]} 25. Rd1 {[%emt 0:01:00]} Rxd1 {[%emt 0:02:38]} 26. Qxd1 {[%emt 0:01:04]} Ke7 {[%emt 0:01:43]} 27. Qb3 {[%emt 0:01:29]} Rd8 {[%emt 0:02:04]} 28. a5 {[%emt 0:00:45]} b5 {[%emt 0:01:50]} 29. c4 {[%emt 0:00:19]} Qd4 {[%emt 0:03:14]} 30. cxb5 {[%emt 0:01:09]} axb5 {[%emt 0:00:41]} 31. Qxb5 {[%emt 0:00:14]} Bd5 {[%emt 0:00:35]} 32. Rg3 {[%emt 0:01:30]} c6 {[%emt 0:00:07]} 33. Qb7+ {[%emt 0:07:28]} Rd7 {[%emt 0:00:01]} 34. Qb8 {[%emt 0:00:08]} Rd8 {[%emt 0:00:09]} 35. Qb7+ {[%emt 0:00:37]} Rd7 {[%emt 0:00:01]} 36. Qb8 {[%emt 0:00:07]} e4 {[%emt 0:01:23]} 37. a6 {[%emt 0:01:07]} e3 {[%emt 0:00:36]} 38. Ng4 {[%emt 0:00:24]} Ne4 {[%emt 0:01:06]} 39. Nxh6 {[%emt 0:01:21]} Nxg3+ {[%emt 0:00:04]} 40. hxg3 {[%emt 0:00:14]} Rd8 {[%emt 0:31:00]} 41. a7 {[%emt 0:36:12]} c5 {[%emt 0:00:00]} 42. Nf4 {[%emt 0:00:00]} Ba8 {[%emt 0:00:00]} 43. Qc7+ {[%emt 0:00:00]} Rd7 {[%emt 0:00:00]} 44. Qb6 {[%emt 0:00:00]} Rd6 {[%emt 0:00:00]} 45. Qc7+ {[%emt 0:00:00]} Rd7 {[%emt 0:00:00]} 46. Qb8 {[%emt 0:00:00]} Rd8 {[%emt 0:00:00]} 47. Ng4 {[%emt 0:00:00]} Re8 {[%emt 0:00:00]} 48. Nd3 {[%emt 0:00:00]} Kf8 {[%emt 0:01:27]} 49. Qb6 {[%emt 0:00:00]} h5 {[%emt 0:02:59]} 50. Qh6+ {[%emt 0:00:00]} Ke7 {[%emt 0:00:03]} 51. Qxh5 {[%emt 0:00:00]} Be4 {[%emt 0:01:04]} 52. f6+ {[%emt 0:00:00]} Kd6 {[%emt 0:00:23]} 53. Ne1 {[%emt 0:00:00]} Bd5 {[%emt 0:00:33]} 54. Qf5 {[%emt 0:00:00]} Rh8 {[%emt 0:00:20]} 55. Bf3 {[%emt 0:00:07]} Bc4+ {[%emt 0:00:42]} 56. Kg1 {[%emt 0:01:01]} Qxb2 {[%emt 0:00:32]} 57. Qf4+ {[%emt 0:00:22]} Kd7 {[%emt 0:00:07]} 58. Qxc4 {[%emt 0:00:46]} 1-0